Workbook

Sheet Modelo
A5: MODELO - Deve ser adaptado utilizando os valores, taxas e prazos do contrato
A7: Valores em Reais
A8: Data da Liberação | B8: Liberação | C8: Spread BNDES (% a.a.) | D8: Sobretaxa Custo Financeiro (% a.a.) | E8: Taxa Cobrança BNDES (% a.a.)
A9: 2025-01-15 | B9: 654637.14 | C9: 3.1 | D9: -0.25 | E9: =C9+D9 -> 2.85
A10: *Atualizar a sobretaxa na data da contratação da operação com a taxa disponível no site do BNDES, em Moedas Contratuais, Sigla: SOBRETAXA LCD (Cód: LD1)
A12: Valores em Reais
A13: Data de Vencimento | B13: Índice de Atualização | C13: Principal Atualizado | D13: Juros Compensatórios | H13: Amortização | J13: Prestação
D14: Taxa | E14: Dias Úteis * | F14: Multiplicador | G14: Juros Compensatórios | H14: N° de Parcelas Restantes Restantes | I14: Valor
A15: 2025-01-31 | B15: =(1+VLOOKUP(A15,SELIC!$A$2:$B$6,2,2)%)^E15 -> 1.005475252 | C15: =((B9)*ROUND(B15,15)) -> 658221.4435 | D15: =E9 -> 2.85 | E15: =NETWORKDAYS(A9,A15-1,feriados) -> 12 | F15: =ROUND(B15*((1+D15%)^(E15/252)),15) -> 1.006821643 | G15: =ROUND((B9)*F15,15)-C15 -> 881.3973996
A16: 2025-02-17 | B16: =(1+VLOOKUP(A16,SELIC!$A$2:$B$6,2,2)%)^E16 -> 1.005407315 | C16: =round_to_even((C15-I15)*ROUND(B16,15),2) -> 661780.65 | D16: =D15 -> 2.85 | E16: =NETWORKDAYS(A15,A16-1,feriados) -> 11 | F16: 1.006641354 | G16: =round_to_even((C15-I15+G15)*F16,2)-C16 -> 1699.53 | H16: 20 | I16: =round_to_even(C16/H16,2) -> 33089.03 | J16: =I16+G16 -> 34788.56
A17: 2025-03-17 | B17: =(1+VLOOKUP(A17,SELIC!$A$2:$B$6,2,2)%)^E17 -> 1.008863547 | C17: =round_to_even((C16-I16)*ROUND(B17,15),2) -> 634264.06 | D17: =D16 -> 2.85 | E17: =NETWORKDAYS(A16,A17-1,feriados) -> 18 | F17: 1.010890617 | G17: =round_to_even((C16-I16)*F17,2)-C17 -> 1274.4 | H17: =H16-1 -> 19 | I17: =round_to_even(C17/H17,2) -> 33382.32 | J17: =I17+G17 -> 34656.72
A18: 2025-03-21 | B18: =(1+VLOOKUP(A18,SELIC!$A$2:$B$6,2,2)%)^E18 -> 1.001962923 | C18: =((C17-I17)*ROUND(B18,15)) -> 602061.2247 | D18: =D17 -> 2.85 | E18: =NETWORKDAYS(A17,A18-1,feriados) -> 4 | F18: =ROUND(B18*((1+D18%)^(E18/252)),15) -> 1.002409953 | G18: =ROUND((C17-I17)*F18,15)-C18 -> 268.6119895
A19: 2025-04-15 | B19: =(1+VLOOKUP(A19,SELIC!$A$2:$B$6,2,2)%)^E19 -> 1.008967898 | C19: =round_to_even((C18-I18)*ROUND(B19,15),2) -> 607460.45 | D19: =D17 -> 2.85 | E19: 17 | F19: 1.010882444 | G19: =round_to_even((C18-I18+G18)*F19,2)-C19 -> 1424.21 | H19: =H17-1 -> 18 | I19: =round_to_even(C19/H19,2) -> 33747.8 | J19: =I19+G19 -> 35172.01
A20: 2025-05-09 | B20: =(1+VLOOKUP(A20,SELIC!$A$2:$B$6,2,2)%)^E20 -> 1.007908691 | C20: =((C19-I19)*ROUND(B20,15)) -> 578249.966 | D20: =D19 -> 2.85 | E20: =NETWORKDAYS(A19,A20-1,feriados) -> 15 | F20: =ROUND(B20*((1+D20%)^(E20/252)),15) -> 1.009596035 | G20: =ROUND((C19-I19)*F20,15)-C20 -> 968.0505367
A21: 2025-05-15 | B21: =(1+VLOOKUP(A21,SELIC!$A$2:$B$6,2,2)%)^E21 -> 1.002172408 | C21: =round_to_even((C20-I20)*ROUND(B21,15),2) -> 579506.16 | D21: =D19 -> 2.85 | E21: 4 | F21: 1.002619531 | G21: =round_to_even((C20-I20+G20)*F21,2)-C21 -> 1229.14 | H21: =H19-1 -> 17 | I21: =round_to_even(C21/H21,2) -> 34088.6 | J21: =I21+G21 -> 35317.74
A22: 2025-06-16 | B22: =(1+VLOOKUP(A22,SELIC!$A$2:$B$6,2,2)%)^E22 -> 1.012006792 | C22: =round_to_even((C21-I21)*ROUND(B22,15),2) -> 551966.27 | D22: =D21 -> 2.85 | E22: =NETWORKDAYS(A21,A22-1,feriados) -> 22 | F22: 1.014492595 | G22: =round_to_even((C21-I21)*F22,2)-C22 -> 1355.81 | H22: =H21-1 -> 16 | I22: =round_to_even(C22/H22,2) -> 34497.89 | J22: 35853.7
A23: 2025-06-23 | B23: =(1+VLOOKUP(A23,SELIC!$A$2:$B$6,2,2)%)^E23 -> 1.002172408 | C23: =((C22-I22)*ROUND(B23,15)) -> 518592.5322 | D23: =D22 -> 2.85 | E23: =NETWORKDAYS(A22,A23-1,feriados) -> 4 | F23: =ROUND(B23*((1+D23%)^(E23/252)),15) -> 1.002619531 | G23: =ROUND((C22-I22)*F23,15)-C23 -> 231.3721032
A24: 2025-07-15 | B24: =(1+VLOOKUP(A24,SELIC!$A$2:$B$6,2,2)%)^E24 -> 1.008857527 | C24: =round_to_even((C23-I23)*ROUND(B24,15),2) -> 523185.98 | D24: =D22 -> 2.85 | E24: 16 | F24: 1.010659155 | G24: =round_to_even((C23-I23+G23)*F24,2)-C24 -> 1168.15 | H24: =H22-1 -> 15 | I24: =round_to_even(C24/H24,2) -> 34879.07 | J24: =I24+G24 -> 36047.22
A25: 2025-08-15 | B25: =(1+VLOOKUP(A24,SELIC!$A$2:$B$6,2,2)%)^E25 -> 1.012757325 | C25: =round_to_even((C24-I24)*ROUND(B25,15),2) -> 494536.4 | D25: =D24 -> 2.85 | E25: =NETWORKDAYS(A24,A25-1,feriados) -> 23 | F25: 1.015358192 | G25: =round_to_even((C24-I24)*F25,2)-C25 -> 1270.02 | H25: =H24-1 -> 14 | I25: =round_to_even(C25/H25,2) -> 35324.03 | J25: 36594.05
A26: 2025-09-15 | B26: =(1+VLOOKUP(A25,SELIC!$A$2:$B$6,2,2)%)^E26 -> 1.011641561 | C26: =round_to_even((C25-I25)*ROUND(B26,15),2) -> 464558.32 | D26: =D25 -> 2.85 | E26: 21 | F26: =ROUND(B26*((1+D26%)^(E26/252)),15) -> 1.014013385 | G26: =round_to_even((C25-I25)*F26,2)-C26 -> 1089.17 | H26: =H25-1 -> 13 | I26: =round_to_even(C26/H26,2) -> 35735.26 | J26: =I26+G26 -> 36824.43
A27: 2025-10-15 | B27: =(1+VLOOKUP(A26,SELIC!$A$2:$B$6,2,2)%)^E27 -> 1.012199289 | C27: =round_to_even((C26-I26)*ROUND(B27,15),2) -> 434054.4 | D27: 2.85 | E27: 22 | F27: 1.014685566 | G27: =round_to_even((C26-I26)*F27,2)-C27 -> 1066.17 | H27: 12 | I27: =round_to_even(C27/H27,2) -> 36171.2 | J27: 37237.37
A28: 2025-11-17 | B28: =(1+VLOOKUP(A27,SELIC!$A$2:$B$6,2,2)%)^E28 -> 1.012757325 | C28: =round_to_even((C27-I27)*ROUND(B28,15),2) -> 402959.13 | D28: 2.85 | E28: 23 | F28: 1.015358192 | G28: =round_to_even((C27-I27)*F28,2)-C28 -> 1034.84 | H28: 11 | I28: =round_to_even(C28/H28,2) -> 36632.65 | J28: 37667.49
A29: 2025-12-15 | B29: =(1+VLOOKUP(A28,SELIC!$A$2:$B$6,2,2)%)^E29 -> 1.010527027 | C29: =round_to_even((C28-I28)*ROUND(B29,15),2) -> 370182.81 | D29: 2.85 | E29: 19 | F29: 1.01267036 | G29: =round_to_even((C28-I28)*F29,2)-C29 -> 785.16 | H29: 10 | I29: =round_to_even(C29/H29,2) -> 37018.28 | J29: 37803.44
A30: 2026-01-15 | B30: =(1+VLOOKUP(A29,SELIC!$A$2:$B$6,2,2)%)^E30 -> 1.011641561 | C30: =round_to_even((C29-I29)*ROUND(B30,15),2) -> 337043.09 | D30: 2.85 | E30: 21 | F30: 1.014013385 | G30: =round_to_even((C29-I29)*F30,2)-C30 -> 790.2 | H30: 9 | I30: =round_to_even(C30/H30,2) -> 37449.23 | J30: 38239.43

Sheet SELIC
A1: Data | B1: Selic diária D-2* | C1: Fator diário | D1: Taxa Selic D-2 | E1: * Utilizada no Índice de Atualização.
A2: 2025-01-15 | B2: 0.045513 | C2: =ROUND((1+D2)^(1/252),8) -> 1.00045513 | D2: 0.1215 | H2: Atenção:
A3: 2025-02-03 | B3: 0.049037 | C3: =ROUND((1+D3)^(1/252),8) -> 1.00049037 | D3: 0.1315 | H3: Atualizar a tabela com a taxa disponível no site do BNDES, em Moedas Contratuais, Sigla: TAXA SELIC D-2 (Cód: 015)
A4: 2025-03-24 | B4: 0.052531 | C4: 1.00052531 | D4: 0.1415 | H4: https://www.bndes.gov.br/SiteBNDES/bndes/bndes_pt/Galerias/Convivencia/Moedas_Contratuais/index.html
A5: 2025-05-12 | B5: 0.054266 | C5: 1.00054266 | D5: 0.1465 | H5: Se a taxa ainda não tiver sido divulgada, o sistema projeta utilizando a última disponível.
A6: 2025-06-24 | B6: 0.055131 | C6: 1.00055131 | D6: 0.149

Sheet Feriados
A1: FERIADOS
A2: 2009-01-01
A3: 2009-02-23
A4: 2009-02-24
A5: 2009-04-10
A6: 2009-04-21
A7: 2009-05-01
A8: 2009-06-11
A9: 2009-09-07
A10: 2009-10-12
A11: 2009-11-02
A12: 2009-11-15
A13: 2009-12-25
A14: 2010-01-01
A15: 2010-02-15
A16: 2010-02-16
A17: 2010-04-02
A18: 2010-04-21
A19: 2010-05-01
A20: 2010-06-03
A21: 2010-09-07
A22: 2010-10-12
A23: 2010-11-02
A24: 2010-11-15
A25: 2010-12-25
A26: 2011-01-01
A27: 2011-03-07
A28: 2011-03-08
A29: 2011-04-21
A30: 2011-04-22
A31: 2011-05-01
A32: 2011-06-23
A33: 2011-09-07
A34: 2011-10-12
A35: 2011-11-02
A36: 2011-11-15
A37: 2011-12-25
A38: 2012-01-01
A39: 2012-02-20
A40: 2012-02-21
A41: 2012-04-06
A42: 2012-04-21
A43: 2012-05-01
A44: 2012-06-07
A45: 2012-09-07
A46: 2012-10-12
A47: 2012-11-02
A48: 2012-11-15
A49: 2012-12-25
A50: 2013-01-01
A51: 2013-02-11
A52: 2013-02-12
A53: 2013-03-29
A54: 2013-04-21
A55: 2013-05-01
A56: 2013-05-30
A57: 2013-09-07
A58: 2013-10-12
A59: 2013-11-02
A60: 2013-11-15
A61: 2013-12-25
A62: 2014-01-01
A63: 2014-03-03
A64: 2014-03-04
A65: 2014-04-18
A66: 2014-04-21
A67: 2014-05-01
A68: 2014-06-19
A69: 2014-09-07
A70: 2014-10-12
A71: 2014-11-02
A72: 2014-11-15
A73: 2014-12-25
A74: 2015-01-01
A75: 2015-02-16
A76: 2015-02-17
A77: 2015-04-03
A78: 2015-04-21
A79: 2015-05-01
A80: 2015-06-04
A81: 2015-09-07
A82: 2015-10-12
A83: 2015-11-02
A84: 2015-11-15
A85: 2015-12-25
A86: 2016-01-01
A87: 2016-02-08
A88: 2016-02-09
A89: 2016-03-25
A90: 2016-04-21
A91: 2016-05-01
A92: 2016-05-26
A93: 2016-09-07
A94: 2016-10-12
A95: 2016-11-02
A96: 2016-11-15
A97: 2016-12-25
A98: 2017-01-01
A99: 2017-02-27
A100: 2017-02-28
A101: 2017-04-14
A102: 2017-04-21
A103: 2017-05-01
A104: 2017-06-15
A105: 2017-09-07
A106: 2017-10-12
A107: 2017-11-02
A108: 2017-11-15
A109: 2017-12-25
A110: 2018-01-01
A111: 2018-02-12
A112: 2018-02-13
A113: 2018-03-30
A114: 2018-04-21
A115: 2018-05-01
A116: 2018-05-31
A117: 2018-09-07
A118: 2018-10-12
A119: 2018-11-02
A120: 2018-11-15
A121: 2018-12-25
A122: 2019-01-01
A123: 2019-03-04
A124: 2019-03-05
A125: 2019-04-19
A126: 2019-04-21
A127: 2019-05-01
A128: 2019-06-20
A129: 2019-09-07
A130: 2019-10-12
A131: 2019-11-02
A132: 2019-11-15
A133: 2019-12-25
A134: 2020-01-01
A135: 2020-02-24
A136: 2020-02-25
A137: 2020-04-10
A138: 2020-04-21
A139: 2020-05-01
A140: 2020-06-11
A141: 2020-09-07
A142: 2020-10-12
A143: 2020-11-02
A144: 2020-11-15
A145: 2020-12-25
A146: 2021-01-01
A147: 2021-02-15
A148: 2021-02-16
A149: 2021-04-02
A150: 2021-04-21
A151: 2021-05-01
A152: 2021-06-03
A153: 2021-09-07
A154: 2021-10-12
A155: 2021-11-02
A156: 2021-11-15
A157: 2021-12-25
A158: 2022-01-01
A159: 2022-02-28
A160: 2022-03-01
A161: 2022-04-15
A162: 2022-04-21
A163: 2022-05-01
A164: 2022-06-16
A165: 2022-09-07
A166: 2022-10-12
A167: 2022-11-02
A168: 2022-11-15
A169: 2022-12-25
A170: 2023-01-01
A171: 2023-02-20
A172: 2023-02-21
A173: 2023-04-07
A174: 2023-04-21
A175: 2023-05-01
A176: 2023-06-08
A177: 2023-09-07
A178: 2023-10-12
A179: 2023-11-02
A180: 2023-11-15
A181: 2023-12-25
A182: 2024-01-01
A183: 2024-02-12
A184: 2024-02-13
A185: 2024-03-29
A186: 2024-04-21
A187: 2024-05-01
A188: 2024-05-30
A189: 2024-09-07
A190: 2024-10-12
A191: 2024-11-02
A192: 2024-11-15
A193: 2024-11-20
A194: 2024-12-25
A195: 2025-01-01
A196: 2025-03-03
A197: 2025-03-04
A198: 2025-04-18
A199: 2025-04-21
A200: 2025-05-01
... 462 more rows
